bitfinex/quotes_BTCUSD_20251120
["timestamp","ask_amount","ask_price","bid_price","bid_amount"]
[1763605473276,0.21611808,92542.0,92541.0,0.2]
[1763605473484,0.21611808,92542.0,92541.0,0.1]
[1763605473695,0.21611808,92542.0,92541.0,0.13995]
[1763605473903,0.01080567,92544.0,92541.0,0.13995]
[1763605474114,0.01080567,92544.0,92543.0,0.01603]
[1763605474510,0.01080567,92544.0,92543.0,0.03995]
[1763605475127,0.01080543,92546.0,92543.0,0.13995]
[1763605475380,0.21611108,92545.0,92544.0,0.02392]
[1763605475781,0.21611108,92545.0,92544.0,0.03995]
[1763605475987,0.21611108,92545.0,92544.0,0.01603]
[1763605476412,0.00364,92574.0,92544.0,0.05075567]
[1763605476654,0.46450253,92581.0,92544.0,0.05075567]
[1763605476655,0.22688965,92556.0,92555.0,0.01131]
[1763605477098,0.22688965,92556.0,92555.0,0.05126]
[1763605477306,0.22688965,92556.0,92540.0,0.4]
[1763605477307,0.01080543,92546.0,92540.0,0.4]
[1763605477529,0.26824626,92531.0,92530.0,0.00032685]
[1763605477744,0.27188626,92531.0,92530.0,0.00032685]
[1763605479260,0.27188626,92531.0,92530.0,0.10032685]
[1763605479428,0.27388626,92531.0,92530.0,0.10032685]
[1763605479807,0.27688626,92531.0,92530.0,0.10032685]
[1763605480188,0.27388626,92531.0,92530.0,0.10032685]
[1763605480415,0.27688626,92531.0,92530.0,0.10032685]
[1763605480844,0.33027983,92531.0,92530.0,0.10032685]
[1763605481017,0.27688626,92531.0,92530.0,0.10032685]
[1763605481374,0.27688626,92531.0,92530.0,0.10115949]
[1763605481555,0.27488626,92531.0,92530.0,0.10115949]
[1763605481796,0.27188626,92531.0,92530.0,0.10115949]
[1763605484373,0.59488626,92531.0,92530.0,0.10115949]
[1763605485199,0.59488626,92531.0,92530.0,0.00115949]
[1763605487522,0.59921479,92531.0,92530.0,0.00115949]
[1763605488396,0.59126963,92521.0,92520.0,0.0002]
[1763605488618,0.59126963,92521.0,92520.0,0.00032687]
[1763605489907,0.70040538,92521.0,92520.0,0.00032687]
[1763605490089,0.59126963,92521.0,92520.0,0.00032687]
[1763605491438,0.59490963,92521.0,92520.0,0.00032687]
[1763605491934,0.27190963,92521.0,92520.0,0.00032687]
[1763605492480,0.21616714,92521.0,92520.0,0.00032687]
[1763605492681,0.21616714,92521.0,92520.0,0.10032687]
[1763605493096,0.26826963,92521.0,92520.0,0.10032687]
[1763605493507,0.21616714,92521.0,92520.0,0.14027687]
[1763605493903,0.21616714,92521.0,92520.0,0.11664406]
[1763605494094,0.22016714,92521.0,92520.0,0.21664406]
[1763605495114,0.006,92521.0,92520.0,0.24056406]
[1763605495589,0.004,92521.0,92520.0,0.24056406]
[1763605495992,0.006,92521.0,92520.0,0.24056406]
[1763605496738,0.002,92521.0,92520.0,0.24056406]
[1763605497150,0.005,92521.0,92520.0,0.24056406]
[1763605497942,0.22116714,92521.0,92520.0,0.24056406]
[1763605498991,0.22116714,92521.0,92520.0,0.21664406]
[1763605499652,0.22116714,92521.0,92520.0,0.20061406]
[1763605500740,0.22116714,92521.0,92520.0,0.10061406]
[1763605503753,0.21916714,92521.0,92520.0,0.11600406]
[1763605503962,0.21616682,92522.0,92520.0,0.11600406]
[1763605504175,0.005,92521.0,92520.0,0.10032687]
[1763605504576,0.01080812,92523.0,92520.0,0.12652534]
[1763605504765,0.01080812,92523.0,92522.0,0.01539]
[1763605505170,0.01080812,92523.0,92522.0,0.03933]
[1763605505371,0.21616246,92523.0,92522.0,0.03933]
[1763605506775,0.22696587,92525.0,92522.0,0.03933]
[1763605506974,0.01080777,92526.0,92524.0,0.01539]
[1763605507201,0.01080777,92526.0,92525.0,0.01539]
[1763605507409,0.0108059,92542.0,92538.0,0.01080637]
[1763605507649,0.0108059,92542.0,92532.0,0.01080707]
[1763605507650,0.02700688,92569.0,92549.0,0.01080508]
[1763605507857,0.0108038,92560.0,92555.0,0.01080438]
[1763605508064,0.0108038,92560.0,92556.0,0.01134]
[1763605508273,0.01080321,92565.0,92559.0,0.23146751]
[1763605508487,0.01080356,92562.0,92557.0,0.22688703]
[1763605508856,0.01080368,92561.0,92557.0,0.3509539]
[1763605509059,0.01080368,92561.0,92558.0,0.02394]
[1763605509472,0.22687153,92564.0,92560.0,0.01539]
[1763605509675,0.01080321,92565.0,92563.0,0.01539]
[1763605509876,0.22686955,92565.0,92564.0,0.01539]
[1763605510076,0.21607605,92560.0,92559.0,0.02394]
[1763605510288,0.21607605,92560.0,92557.0,0.10012687]
[1763605510289,0.21608072,92558.0,92557.0,0.00012687]
[1763605510665,0.21608072,92558.0,92557.0,0.01551687]
[1763605510913,0.21608072,92558.0,92557.0,0.03945687]
[1763605511367,0.22887985,92560.0,92557.0,0.03945687]
[1763605511509,0.0128038,92560.0,92559.0,0.01539]
[1763605511873,0.01080356,92562.0,92559.0,0.03933]
[1763605512086,0.21607126,92563.0,92561.0,0.01539]
[1763605512087,0.22687251,92563.0,92561.0,0.01539]
[1763605512306,0.22687251,92563.0,92562.0,0.01539]
[1763605512719,0.22986972,92565.0,92562.0,0.01539]
[1763605512720,0.003,92565.0,92562.0,0.05013356]
[1763605512920,0.01080286,92568.0,92564.0,0.01539]
[1763605513119,0.01080286,92568.0,92563.0,0.03474345]
[1763605513120,0.01080275,92569.0,92566.0,0.01539]
[1763605513269,0.01080275,92569.0,92568.0,0.02673]
[1763605514255,0.01080275,92569.0,92568.0,0.05067]
[1763605515518,0.01080263,92570.0,92568.0,0.15067]
[1763605515716,0.01080228,92573.0,92569.0,0.03933]
[1763605515969,0.22685044,92572.0,92570.0,0.02394]
[1763605516379,0.22685044,92572.0,92571.0,0.01539]
[1763605516618,0.2160188,92585.0,92574.0,0.21604198]
[1763605516791,0.01080088,92585.0,92582.0,0.01539]
[1763605516948,0.01080088,92585.0,92584.0,0.01539]
[1763605518299,0.01080088,92585.0,92584.0,0.11539]
[1763605519388,0.01680088,92585.0,92584.0,0.11539]
[1763605521241,0.01680088,92585.0,92584.0,0.1]
[1763605521900,0.01680088,92585.0,92584.0,0.11539]
[1763605522529,0.01680088,92585.0,92584.0,0.1]
[1763605524474,0.01680088,92585.0,92584.0,0.13933]
[1763605527673,0.006,92585.0,92584.0,0.13933]
[1763605528237,0.05810249,92585.0,92584.0,0.1]
[1763605528426,0.05810249,92585.0,92584.0,0.2]
[1763605528647,0.006,92585.0,92584.0,0.25065]
[1763605530264,0.006,92585.0,92584.0,0.2]
[1763605530856,0.006,92585.0,92584.0,0.1]
[1763605535181,0.006,92585.0,92584.0,0.11245]
[1763605535494,0.006,92585.0,92584.0,0.1]
[1763605537283,0.02622356,92585.0,92584.0,0.1]
[1763605547654,0.006,92585.0,92584.0,0.1]
[1763605547792,0.02626496,92585.0,92584.0,0.1]
[1763605548418,0.02626497,92585.0,92584.0,0.1]
[1763605550336,0.006,92585.0,92584.0,0.1]
[1763605556842,0.05810249,92585.0,92584.0,0.1]
[1763605558528,0.21607138,92562.0,92559.0,0.01245]
[1763605558948,0.01080321,92565.0,92560.0,0.00364]
[1763605559149,0.01080275,92569.0,92566.0,0.02781]
[1763605559298,0.01080275,92569.0,92566.0,0.01245]
[1763605559500,0.01080275,92569.0,92568.0,0.01536]
[1763605560112,0.01080275,92569.0,92568.0,0.11536]
[1763605560323,0.0108017,92578.0,92571.0,0.01080251]
[1763605560523,0.0108017,92578.0,92576.0,0.00749]
[1763605560723,0.01080158,92579.0,92577.0,0.01536]
[1763605560923,0.22683504,92579.0,92577.0,0.03808]
[1763605561127,0.01079971,92595.0,92587.0,0.01080065]
[1763605561476,0.2268031,92592.0,92590.0,0.01245]
[1763605561806,0.2268031,92592.0,92590.0,0.03517]
[1763605562011,0.01080006,92592.0,92591.0,0.01536]
[1763605562220,0.01080006,92592.0,92591.0,0.03992]
[1763605562221,0.00042328,92592.0,92591.0,0.03992]
[1763605562786,0.00042328,92592.0,92591.0,0.67892371]
[1763605562961,0.00042328,92592.0,92591.0,3.67892371]
[1763605563162,0.00042328,92592.0,92591.0,3.77892371]
[1763605563319,0.00342328,92592.0,92591.0,3.77892371]
[1763605563521,0.00042328,92592.0,92591.0,3.77892371]
[1763605563928,0.00342328,92592.0,92591.0,3.87892371]
[1763605564125,0.00042328,92592.0,92591.0,3.87892371]
[1763605564338,0.00242328,92592.0,92591.0,3.87892371]
[1763605565640,0.00342328,92592.0,92591.0,3.87892371]
[1763605565841,0.00142328,92592.0,92591.0,3.87892371]
[1763605566270,0.00342328,92592.0,92591.0,3.87892371]
[1763605567861,3.28e-06,92592.0,92591.0,3.87892371]
[1763605568055,0.0004,92630.0,92624.0,0.01079633]
[1763605568258,0.0004,92630.0,92629.0,0.0251]
[1763605568259,0.00051434,92630.0,92629.0,0.0251]
[1763605568620,0.00051434,92630.0,92629.0,0.04966]
[1763605569204,0.00051434,92630.0,92629.0,0.14966]
[1763605569813,0.00051434,92630.0,92629.0,3.14966]
[1763605570344,0.00051434,92630.0,92629.0,3.25266]
[1763605570556,0.00351434,92630.0,92629.0,3.25266]
[1763605571643,0.00351434,92630.0,92629.0,3.24966]
[1763605572073,0.00551434,92630.0,92629.0,3.24966]
[1763605572360,0.21842711,92630.0,92629.0,3.24966]
[1763605572738,0.22142711,92630.0,92629.0,3.24966]
[1763605572944,0.00551434,92630.0,92629.0,3.24966]
[1763605573534,0.00551434,92630.0,92629.0,3.4655751]
[1763605573733,0.00551434,92630.0,92629.0,0.2533]
[1763605573966,0.00637449,92630.0,92629.0,0.2533]
[1763605577053,0.00637449,92630.0,92629.0,0.24966]
[1763605577248,0.00637449,92630.0,92629.0,0.2533]
[1763605577884,0.00637449,92630.0,92629.0,0.2]
[1763605578848,0.00637449,92630.0,92629.0,0.25342]
[1763605582373,0.22228726,92630.0,92629.0,0.25342]
[1763605582753,0.22228726,92630.0,92629.0,0.2]
[1763605583110,0.23850726,92630.0,92629.0,0.2]
[1763605583948,0.22228726,92630.0,92629.0,0.2]
[1763605584510,0.23850726,92630.0,92629.0,0.2]
[1763605584806,0.26253726,92630.0,92629.0,0.2]
[1763605585221,0.26053726,92630.0,92629.0,0.2]
[1763605585647,0.26253726,92630.0,92629.0,0.1]
[1763605585849,0.25953726,92630.0,92629.0,0.1]
[1763605586248,0.26253726,92630.0,92629.0,0.1]
[1763605589624,0.23850726,92630.0,92629.0,0.1]
[1763605589987,0.26122726,92630.0,92629.0,0.1]
[1763605591357,0.31332975,92630.0,92629.0,0.1]
[1763605591568,0.33353358,92630.0,92629.0,0.1]
[1763605592134,0.32853358,92630.0,92629.0,0.1]
[1763605592333,0.32853358,92630.0,92629.0,0.101]
[1763605592826,0.32853358,92630.0,92629.0,0.1]
[1763605593021,0.32853358,92630.0,92629.0,0.103]
[1763605599311,0.30832975,92630.0,92629.0,0.103]
[1763605600112,0.23350726,92630.0,92629.0,0.103]
[1763605600567,0.25698726,92630.0,92629.0,0.103]
[1763605600772,0.30908975,92630.0,92629.0,0.103]
[1763605601173,0.32929519,92630.0,92629.0,0.103]
[1763605601375,0.30908975,92630.0,92629.0,0.103]
[1763605602225,0.30908975,92630.0,92629.0,0.1]
[1763605602426,0.30908975,92630.0,92629.0,0.105]
[1763605608117,0.26938975,92630.0,92629.0,0.105]
[1763605609703,0.30837975,92630.0,92629.0,0.105]
[1763605610466,0.21728726,92630.0,92629.0,0.105]
[1763605614355,0.00137449,92630.0,92629.0,0.14546]
[1763605614788,0.00137449,92630.0,92629.0,0.24546]
[1763605615214,0.00137449,92630.0,92629.0,0.24246]
[1763605615426,0.00137449,92630.0,92629.0,0.2441]
[1763605615427,0.00337449,92630.0,92629.0,0.2441]
[1763605615640,0.00637449,92630.0,92629.0,0.2441]
[1763605616501,0.00337449,92630.0,92629.0,0.2441]
[1763605616930,0.00637449,92630.0,92629.0,0.25641]
[1763605618078,0.00437449,92630.0,92629.0,0.25641]
[1763605618246,0.00520555,92630.0,92629.0,0.25641]
[1763605618450,0.00520555,92630.0,92629.0,0.23221]
[1763605618950,0.00520555,92630.0,92629.0,0.25641]
[1763605620851,0.00520555,92630.0,92629.0,0.21231]
[1763605621107,0.09629804,92630.0,92629.0,0.2]
[1763605621485,0.00520555,92630.0,92629.0,0.22857]
[1763605621682,0.00320555,92630.0,92629.0,0.1]
[1763605622107,0.03965555,92630.0,92629.0,0.101]
[1763605622332,0.03965555,92630.0,92629.0,0.105]
[1763605623212,0.03965555,92630.0,92629.0,0.104]
[1763605623600,0.03965555,92630.0,92629.0,0.108]
[1763605623803,0.09175804,92630.0,92629.0,0.108]
[1763605625306,0.09175804,92630.0,92629.0,0.1]
[1763605625530,0.09175804,92630.0,92629.0,0.103]
[1763605626875,0.09175804,92630.0,92629.0,0.106]
[1763605627330,0.09175804,92630.0,92629.0,0.103]
[1763605627534,0.09175804,92630.0,92629.0,0.106]
[1763605631497,0.00020555,92630.0,92629.0,0.106]
[1763605631885,0.01572555,92630.0,92629.0,0.106]
[1763605632248,0.03965555,92630.0,92629.0,0.106]
[1763605632453,0.00020555,92630.0,92629.0,0.106]
[1763605633487,0.00020555,92630.0,92629.0,0.206]
[1763605633882,0.01572555,92630.0,92629.0,0.206]
[1763605634081,0.0152479,92630.0,92629.0,0.206]
[1763605634381,0.0152479,92630.0,92629.0,0.00957888]
[1763605634696,0.21591207,92631.0,92629.0,0.00957888]
[1763605635485,0.01552,92630.0,92629.0,0.00957888]
[1763605635967,0.01552,92630.0,92629.0,0.01057888]
[1763605636371,0.01552,92630.0,92629.0,0.11257888]
[1763605636774,0.01552,92630.0,92629.0,0.11357888]
[1763605637033,0.01552,92630.0,92629.0,0.11057888]
[1763605637210,0.01552,92630.0,92629.0,0.11357888]
[1763605641583,0.21591207,92631.0,92629.0,0.11357888]
[1763605641973,0.01552,92630.0,92629.0,0.11357888]
[1763605642386,0.01552,92630.0,92629.0,0.11257888]
[1763605642774,0.01552,92630.0,92629.0,0.11357888]
[1763605643082,0.01552,92630.0,92629.0,0.11057888]
[1763605643519,0.01552,92630.0,92629.0,0.11157888]
[1763605643733,0.01552,92630.0,92629.0,0.11057888]
[1763605644278,0.01552,92630.0,92629.0,0.11157888]
[1763605646049,0.09155249,92630.0,92629.0,0.11157888]
[1763605646472,0.06762249,92630.0,92629.0,0.11157888]
[1763605646657,0.05210249,92630.0,92629.0,0.11157888]
[1763605646886,0.05210249,92630.0,92629.0,0.102]
[1763605647108,0.06733249,92630.0,92629.0,0.102]
[1763605647534,0.09432158,92630.0,92629.0,0.102]
[1763605647954,0.07909158,92630.0,92629.0,0.102]
[1763605649695,0.21591207,92631.0,92629.0,0.102]
[1763605649894,0.24290087,92631.0,92629.0,0.102]
[1763605650515,0.21591207,92631.0,92629.0,0.101]
[1763605650696,0.21591207,92631.0,92629.0,0.1]
[1763605650908,0.21591207,92631.0,92629.0,0.101]
[1763605651063,0.21591207,92631.0,92629.0,0.102]
[1763605651259,0.21591044,92631.0,92630.0,0.01599]
[1763605651460,0.01079505,92635.0,92630.0,0.0396]
[1763605651717,0.22669616,92635.0,92634.0,0.02786]
[1763605652015,0.01079505,92635.0,92634.0,0.02786]
[1763605652216,0.00022932,92638.0,92635.0,0.01079505]
[1763605652421,0.00022932,92638.0,92637.0,0.01506]
[1763605653586,0.00022932,92638.0,92637.0,0.01906]
[1763605654011,0.00022932,92638.0,92637.0,0.04352]
[1763605654411,0.00022932,92638.0,92637.0,0.14352]
[1763605654814,0.00022932,92638.0,92637.0,0.24652]
[1763605660208,0.00022932,92638.0,92637.0,0.22206]
[1763605662206,0.00022932,92638.0,92637.0,0.207]
[1763605666727,0.01558932,92638.0,92637.0,0.207]
[1763605666901,0.03862932,92638.0,92637.0,0.207]
[1763605668085,0.03862932,92638.0,92637.0,0.107]
[1763605669275,0.03862932,92638.0,92637.0,0.104]
[1763605669475,0.03862932,92638.0,92637.0,0.1]
[1763605669674,0.03862932,92638.0,92637.0,0.103]
[1763605669874,0.03862932,92638.0,92637.0,0.106]
[1763605674833,0.04436932,92638.0,92637.0,0.106]
[1763605675461,0.07135608,92638.0,92637.0,0.106]
[1763605683358,0.12345857,92638.0,92637.0,0.106]
[1763605683793,0.4788832,92638.0,92637.0,0.106]
[1763605683995,0.47213833,92638.0,92637.0,0.106]
[1763605684804,0.47213833,92638.0,92637.0,0.1]
[1763605685046,0.47213833,92638.0,92599.0,0.03545925]
[1763605685047,0.01079878,92603.0,92599.0,0.03545925]
[1763605685260,0.01079878,92603.0,92599.0,0.01091359]
[1763605685461,0.22677695,92602.0,92600.0,0.02466]
[1763605685653,0.01079866,92604.0,92602.0,0.01605]
[1763605685827,0.01079831,92607.0,92604.0,0.02749]
[1763605686034,0.01079831,92607.0,92604.0,0.01144]
[1763605686296,0.01079831,92607.0,92606.0,0.01605]
[1763605687895,0.21596872,92606.0,92604.0,0.01144]
[1763605688312,0.003,92607.0,92605.0,0.04071]
[1763605688527,0.003,92607.0,92606.0,0.01605]
[1763605688731,0.004,92607.0,92606.0,0.04071]
[1763605689170,0.22676379,92608.0,92606.0,0.14071]
[1763605689315,0.22676379,92608.0,92606.0,0.1]
[1763605689710,0.22676379,92608.0,92606.0,0.2]
[1763605689946,0.007,92607.0,92606.0,0.2]
[1763605690330,0.003,92607.0,92606.0,0.2]
[1763605690927,0.22676379,92608.0,92606.0,0.2]
[1763605691316,0.22676379,92608.0,92606.0,0.201]
[1763605691974,0.20563499,92607.0,92606.0,0.201]
[1763605692147,0.20963499,92607.0,92606.0,0.101]
[1763605692329,0.24206761,92607.0,92606.0,0.101]
[1763605692530,0.23806761,92607.0,92606.0,0.101]
[1763605692731,0.12413511,92607.0,92606.0,0.101]
[1763605692964,0.12777511,92607.0,92606.0,0.1]
[1763605693428,0.12777511,92607.0,92606.0,0.102]
[1763605694307,0.12777511,92607.0,92606.0,0.105]
[1763605694308,0.23806761,92607.0,92606.0,0.105]
[1763605694911,0.23806761,92607.0,92606.0,0.102]
[1763605695170,0.23806761,92607.0,92606.0,0.105]
[1763605700030,0.56106761,92607.0,92606.0,0.105]
[1763605701005,0.56106761,92607.0,92606.0,0.102]
[1763605701205,0.56106761,92607.0,92606.0,0.104]
[1763605701818,0.56106761,92607.0,92606.0,0.102]
[1763605702047,0.56106761,92607.0,92606.0,0.104]
[1763605702613,0.56106761,92607.0,92606.0,0.004]
[1763605707100,0.56106761,92607.0,92606.0,0.002]
[1763605707304,0.56106761,92607.0,92599.0,0.00011434]
[1763605707305,0.26808287,92601.0,92599.0,0.00011434]
[1763605707508,0.09576033,92600.0,92599.0,0.00011434]
[1763605707733,0.44280033,92600.0,92599.0,0.00011434]
[1763605707956,0.42724249,92600.0,92599.0,0.00011434]
[1763605709457,0.42724249,92600.0,92599.0,0.00411434]
[1763605709872,0.42724249,92600.0,92559.0,0.34524391]
[1763605709873,0.21607138,92562.0,92559.0,0.34524391]
[1763605710084,0.21607138,92562.0,92561.0,0.01587]
[1763605710734,0.21607138,92562.0,92561.0,0.11587]
[1763605710946,0.22687494,92562.0,92561.0,0.11587]
[1763605711152,0.22687494,92562.0,92561.0,0.2]
[1763605711393,0.22887494,92562.0,92561.0,0.2]
[1763605712263,0.23187494,92562.0,92561.0,0.2]
[1763605712412,0.22687494,92562.0,92561.0,0.2]
[1763605712609,0.23087494,92562.0,92561.0,0.2]
[1763605712867,0.23287494,92562.0,92561.0,0.2]
[1763605715610,0.24888494,92562.0,92561.0,0.2]
[1763605716388,0.23287494,92562.0,92561.0,0.2]
[1763605718921,0.27144494,92562.0,92561.0,0.2]
[1763605719946,0.26544494,92562.0,92561.0,0.2]
[1763605720154,0.26544494,92562.0,92561.0,0.1]
[1763605720318,0.26544494,92562.0,92561.0,0.105]
[1763605723060,0.31754743,92562.0,92561.0,0.105]
[1763605724983,0.22687494,92562.0,92561.0,0.105]
[1763605725330,0.24288494,92562.0,92561.0,0.105]
[1763605725565,0.26544494,92562.0,92561.0,0.105]
[1763605726456,0.04937356,92562.0,92561.0,0.105]
[1763605726659,0.26544494,92562.0,92561.0,0.105]
[1763605728322,0.02306298,92567.0,92561.0,0.105]
[1763605728554,0.01080333,92564.0,92561.0,0.1225]
[1763605728831,0.22687014,92564.0,92563.0,0.00607]
[1763605729738,0.21607605,92560.0,92559.0,0.00042328]
[1763605730481,0.25464605,92560.0,92559.0,0.00042328]
[1763605730849,0.25464605,92560.0,92559.0,0.10042328]
[1763605731267,0.25464605,92560.0,92559.0,0.20042328]
[1763605731878,0.25464605,92560.0,92559.0,0.20342328]
[1763605732372,0.25464605,92560.0,92559.0,0.20442328]
[1763605733317,0.23208605,92560.0,92559.0,0.20442328]
[1763605733522,0.21607605,92560.0,92559.0,0.20442328]
[1763605733995,0.23208605,92560.0,92559.0,0.20442328]
[1763605734592,0.22687551,92562.0,92559.0,0.22058328]
[1763605734807,0.01080333,92564.0,92561.0,0.02223]
[1763605735234,0.22687211,92564.0,92561.0,0.02223]
[1763605736084,0.22687211,92564.0,92561.0,0.02323]
[1763605736292,0.01080333,92564.0,92561.0,0.02323]
[1763605737316,0.01080333,92564.0,92562.0,0.1]
[1763605737703,0.01080251,92571.0,92563.0,0.01616]
[1763605737862,0.01080298,92567.0,92564.0,0.01616]
[1763605738312,0.01080275,92569.0,92566.0,0.01616]
[1763605738526,0.01080216,92574.0,92566.0,0.01616]
[1763605738527,0.01080228,92573.0,92569.0,0.01616]
[1763605738725,0.01080228,92573.0,92570.0,0.01616]
[1763605738726,0.21605218,92571.0,92570.0,0.01616]
[1763605738934,0.01080228,92573.0,92570.0,0.01616]
[1763605739154,0.0108017,92578.0,92572.0,0.01616]
[1763605739371,0.21603638,92577.0,92573.0,0.01616]
[1763605739586,0.22684248,92576.0,92573.0,0.01616]
[1763605740034,0.22684248,92576.0,92575.0,0.01616]
[1763605740240,0.01080228,92573.0,92570.0,0.01080263]
[1763605741114,0.01080251,92571.0,92568.0,0.22686009]
[1763605741324,0.01080251,92571.0,92568.0,0.24436009]
[1763605741534,0.01080251,92571.0,92570.0,0.01616]
[1763605741737,0.01080298,92567.0,92560.0,0.77691962]
[1763605741956,0.01080333,92564.0,92561.0,0.00971]
[1763605742167,0.22687212,92564.0,92561.0,0.00971]
[1763605742422,0.22687212,92564.0,92561.0,0.00607]
[1763605742633,0.22686961,92565.0,92563.0,0.01542]
[1763605742634,0.01080321,92565.0,92563.0,0.01542]
[1763605742859,0.01080275,92569.0,92565.0,0.22686759]
[1763605743011,0.43194313,92605.0,92569.0,0.01542]
[1763605743215,0.01080158,92579.0,92575.0,0.01542]
[1763605743386,0.01080158,92579.0,92578.0,0.01144]
[1763605743782,0.02700396,92579.0,92578.0,0.01144]
[1763605743983,0.2160311,92580.0,92578.0,0.02686]
[1763605745070,0.2160311,92580.0,92579.0,0.1]
[1763605745442,0.22682839,92581.0,92579.0,0.2]
[1763605746081,0.007,92580.0,92579.0,0.2]
[1763605746459,0.01532,92580.0,92579.0,0.2]
[1763605746637,0.06499367,92580.0,92579.0,0.2]
[1763605747671,0.06799367,92580.0,92579.0,0.2]
[1763605748618,0.07199367,92580.0,92579.0,0.2]
[1763605758488,0.06899367,92580.0,92579.0,0.2]
[1763605758907,0.06499367,92580.0,92579.0,0.203]
[1763605759291,0.06499367,92580.0,92579.0,0.206]
[1763605759983,0.11709616,92580.0,92579.0,0.206]
[1763605763023,0.11709616,92580.0,92579.0,0.106]
[1763605764018,0.11709616,92580.0,92579.0,0.103]
[1763605766661,0.44009616,92580.0,92579.0,0.103]
[1763605766842,0.41309249,92580.0,92579.0,0.103]
[1763605767047,0.41309249,92580.0,92579.0,0.003]
[1763605768378,0.01080356,92562.0,92559.0,0.00042328]
[1763605768554,0.02558,92560.0,92559.0,0.00042328]
[1763605768788,0.24165605,92560.0,92559.0,0.00042328]
[1763605768951,0.26492605,92560.0,92559.0,0.00042328]
[1763605769158,0.26492605,92560.0,92559.0,0.10042328]
[1763605770437,0.26492605,92560.0,92559.0,0.10342328]
[1763605771832,0.31702854,92560.0,92559.0,0.10342328]
[1763605773656,0.31702854,92560.0,92559.0,0.10042328]
[1763605773808,0.31702854,92560.0,92559.0,0.10342328]
[1763605780247,0.27734854,92560.0,92559.0,0.10342328]
[1763605781253,0.29375854,92560.0,92559.0,0.10342328]
[1763605781630,0.27734854,92560.0,92559.0,0.10342328]
[1763605782761,0.00917,92560.0,92559.0,0.10342328]
[1763605784028,0.0361795,92560.0,92559.0,0.10342328]
[1763605787257,0.0761895,92560.0,92559.0,0.10342328]
[1763605789542,0.0525895,92560.0,92559.0,0.10342328]
[1763605790328,0.0361795,92560.0,92559.0,0.10342328]
[1763605790906,0.02806978,92560.0,92559.0,0.10342328]
[1763605791116,0.0361795,92560.0,92559.0,0.10342328]
[1763605792236,0.02621737,92560.0,92559.0,0.10342328]
[1763605792432,0.03442387,92560.0,92559.0,0.10342328]
[1763605793361,0.0108045,92554.0,92551.0,0.01080485]
[1763605793548,0.0108045,92554.0,92551.0,0.01093172]
[1763605794295,0.00917,92560.0,92553.0,0.02258462]
[1763605794413,0.01080415,92557.0,92554.0,0.01178]
[1763605794655,0.01080403,92558.0,92554.0,0.0225845]
[1763605794858,0.01080403,92558.0,92556.0,0.1]
[1763605795063,0.01080403,92558.0,92557.0,0.00607]
[1763605795825,0.22688653,92558.0,92557.0,0.00607]
[1763605795961,0.22688653,92558.0,92556.0,0.2]
[1763605795962,0.05210249,92557.0,92556.0,0.2]
[1763605796156,0.09211249,92557.0,92556.0,0.1]
[1763605797277,0.05210249,92557.0,92556.0,0.1]
[1763605797778,0.06851249,92557.0,92556.0,0.2]
[1763605797977,0.09211249,92557.0,92556.0,0.2]
[1763605800605,0.09211249,92557.0,92556.0,0.1]
[1763605802042,0.11912287,92557.0,92556.0,0.1]
[1763605803009,0.09211249,92557.0,92556.0,0.1]
[1763605804238,0.01641,92557.0,92556.0,0.1]
[1763605804434,0.0407,92557.0,92556.0,0.1]
[1763605805762,0.22688411,92559.0,92556.0,0.1]
[1763605805949,0.22688411,92559.0,92558.0,0.01178]
[1763605806351,0.01080368,92561.0,92558.0,0.01178]
[1763605806555,0.22687963,92561.0,92558.0,0.01178]
[1763605807192,0.2268823,92559.0,92556.0,0.21080426]
[1763605807434,0.23185306,92557.0,92556.0,0.1]
[1763605807828,0.21609473,92552.0,92551.0,0.00012687]
[1763605808674,0.0108045,92554.0,92551.0,0.01190687]
[1763605808875,0.21607954,92559.0,92553.0,0.01178]
[1763605809077,0.0108038,92560.0,92558.0,0.01785]
[1763605809322,0.0108038,92560.0,92559.0,0.01178]
[1763605810056,0.01080298,92567.0,92560.0,0.0108038]
[1763605810230,0.01080298,92567.0,92561.0,0.01080368]
[1763605810231,0.0108031,92566.0,92561.0,0.01080368]
[1763605810429,0.01080321,92565.0,92561.0,0.01080368]
[1763605810838,0.01080321,92565.0,92561.0,0.22687725]
[1763605811016,0.01080263,92570.0,92564.0,0.02258333]
[1763605811215,0.01080228,92573.0,92569.0,0.0175]
[1763605811422,0.21604804,92572.0,92569.0,0.0175]
[1763605811821,0.0108024,92572.0,92569.0,0.0175]
[1763605812048,0.01080193,92576.0,92571.0,0.01178]
[1763605812049,0.01080205,92575.0,92571.0,0.01178]
[1763605812256,0.01080216,92574.0,92571.0,0.01178]
[1763605812482,0.21604804,92572.0,92571.0,0.01178]
[1763605812615,0.21604804,92572.0,92571.0,0.11178]
[1763605813323,0.21604804,92572.0,92571.0,0.1]
[1763605813602,0.01080216,92574.0,92571.0,0.12356]
[1763605813805,0.01080216,92574.0,92571.0,0.1]
[1763605813950,0.21604804,92572.0,92571.0,0.103]
[1763605814557,0.21704804,92572.0,92571.0,0.1]
[1763605814949,0.21604804,92572.0,92571.0,0.1]
[1763605815150,0.22004804,92572.0,92571.0,0.2]
[1763605815846,0.004,92572.0,92571.0,0.2]
[1763605816060,0.22004804,92572.0,92571.0,0.2]
[1763605816673,0.22004804,92572.0,92571.0,0.203]
[1763605816880,0.21604804,92572.0,92571.0,0.203]
[1763605817286,0.01080181,92577.0,92571.0,0.206]
[1763605817498,0.01225,92572.0,92571.0,0.206]
[1763605817705,0.02802,92572.0,92571.0,0.206]
[1763605817914,0.05231,92572.0,92571.0,0.206]
[1763605818556,0.21604595,92573.0,92571.0,0.206]
[1763605818769,0.21604595,92573.0,92571.0,0.203]
[1763605819208,0.21604595,92573.0,92571.0,0.206]
[1763605819620,0.21604595,92573.0,92571.0,0.203]
[1763605819841,0.21604595,92573.0,92571.0,0.206]
[1763605820749,0.04006,92572.0,92571.0,0.206]
[1763605820970,0.04006,92572.0,92571.0,0.203]
[1763605821459,0.04006,92572.0,92571.0,0.206]
[1763605821683,0.04006,92572.0,92571.0,0.203]